fUSD/lending_fUSD_20250618
["ID","MTS","AMOUNT","RATE_DAILY","PERIOD"]
[366372650,1750218678765,-1395.47,0.00016931,2]
[366372651,1750218678775,-490.0,0.00016931,2]
[366372652,1750218678788,-5406.59,0.00016931,2]
[366372653,1750218678797,-490.0,0.00016931,2]
[366372654,1750218678808,-362.431881,0.00016931,2]
[366372655,1750218678817,-490.0,0.00016931,2]
[366372656,1750218678827,-362.431881,0.00016931,2]
[366372657,1750218678837,-490.0,0.00016931,2]
[366372658,1750218678847,-362.431881,0.00016931,2]
[366372659,1750218678857,-775.08,0.00016931,2]
[366372660,1750218678867,-490.0,0.00016931,2]
[366372661,1750218678877,-694.04,0.00016931,2]
[366372662,1750218678887,-490.0,0.00016931,2]
[366372663,1750218678897,-1465.59,0.00016931,2]
[366372664,1750218678907,-362.431881,0.00016931,2]
[366372665,1750218678917,-490.0,0.00016931,2]
[366372666,1750218678926,-362.431881,0.00016931,2]
[366372667,1750218678937,-362.431885,0.00016931,2]
[366372668,1750218678947,-524.51,0.00016931,2]
[366372669,1750218678957,-490.0,0.00016931,2]
[366372670,1750218678967,-1924.3,0.00016931,2]
[366372671,1750218678977,-3189.16,0.00016931,2]
[366372672,1750218678986,-490.0,0.00016931,2]
[366372673,1750218678996,-1327.25,0.00016931,2]
[366372674,1750218679006,-8713.62,0.00016931,2]
[366372675,1750218679015,-2067.36,0.00016931,2]
[366372676,1750218679024,-860.89,0.00016931,2]
[366372677,1750218679034,-610.28,0.00016931,2]
[366372678,1750218679044,-3407.32,0.00016931,2]
[366372679,1750218679054,-2888.6,0.00016931,2]
[366372680,1750218679064,-672.25,0.00016931,2]
[366372681,1750218679075,-1856.67,0.00016931,2]
[366372682,1750218679085,-1450.07,0.00016931,2]
[366372683,1750218679095,-1952.77,0.00016931,2]
[366372684,1750218679105,-490.0,0.00016931,2]
[366372685,1750218679115,-1432.0,0.00016931,2]
[366372686,1750218679125,-1829.63,0.00016931,2]
[366372687,1750218679136,-1707.58,0.00016931,2]
[366372688,1750218679148,-3428.35,0.00016931,2]
[366372689,1750218679159,-490.0,0.00016931,2]
[366372690,1750218679168,-490.0,0.00016931,2]
[366372691,1750218679179,-490.0,0.00016931,2]
[366372692,1750218679189,-151.0,0.00016931,2]
[366372693,1750218679200,-151.0,0.00016931,2]
[366372694,1750218679210,-490.0,0.00016931,2]
[366372695,1750218679221,-152.03768,0.00016931,2]
[366372696,1750218679232,-1149.91,0.00016931,2]
[366372697,1750218679242,-15283.35,0.00016931,2]
[366372698,1750218679252,-1904.13,0.00016931,2]
[366372699,1750218679263,-490.0,0.00016931,2]
[366372700,1750218679274,-730.57,0.00016931,2]
[366372701,1750218679284,-634.62,0.00016931,2]
[366372702,1750218679293,-490.0,0.00016931,2]
[366372703,1750218679304,-3032.81,0.00016931,2]
[366372704,1750218679314,-2536.6,0.00016931,2]
[366372705,1750218679324,-490.0,0.00016931,2]
[366372706,1750218679333,-490.0,0.00016931,2]
[366372707,1750218679343,-6588.04,0.00016931,2]
[366372708,1750218679353,-1204.02,0.00016931,2]
[366372709,1750218679363,-1358.06,0.00016931,2]
[366372710,1750218679373,-490.0,0.00016931,2]
[366372711,1750218679384,-490.0,0.00016931,2]
[366372712,1750218679394,-2554.38,0.00016931,2]
[366372713,1750218679404,-490.0,0.00016931,2]
[366372714,1750218679414,-490.0,0.00016931,2]
[366372715,1750218679423,-490.0,0.00016931,2]
[366372716,1750218679434,-490.0,0.00016931,2]
[366372717,1750218679443,-7578.51,0.00016931,2]
[366372718,1750218679453,-490.0,0.00016931,2]
[366372719,1750218679463,-490.0,0.00016931,2]
[366372720,1750218679473,-1562.67,0.00016931,2]
[366372721,1750218679483,-1709.73,0.00016931,2]
[366372722,1750218679493,-1180.54,0.00016931,2]
[366372723,1750218679503,-490.0,0.00016931,2]
[366372724,1750218679512,-3814.55,0.00016931,2]
[366372725,1750218679523,-767.12,0.00016931,2]
[366372726,1750218679533,-2418.61,0.00016931,2]
[366372727,1750218679543,-815.55,0.00016931,2]
[366372728,1750218679553,-785.92,0.00016931,2]
[366372729,1750218679563,-2145.46,0.00016931,2]
[366372730,1750218679573,-317.48841227,0.00016931,2]
[366372731,1750218679582,-490.0,0.00016931,2]
[366372732,1750218679592,-490.0,0.00016931,2]
[366372733,1750218679602,-1103.42,0.00016931,2]
[366372734,1750218679612,-991.69,0.00016931,2]
[366372735,1750218679622,-1946.78,0.00016931,2]
[366372736,1750218679633,-243.874976,0.00016931,2]
[366372737,1750218679643,-243.874976,0.00016931,2]
[366372738,1750218679653,-490.0,0.00016931,2]
[366372739,1750218679662,-490.0,0.00016931,2]
[366372740,1750218679672,-243.874976,0.00016931,2]
[366372741,1750218679682,-214.5674032,0.00016931,2]
[366372742,1750218679692,-3805.54,0.00016931,2]
[366372743,1750218679702,-1159.64,0.00016931,2]
[366372744,1750218679712,-1341.49,0.00016931,2]
[366372745,1750218679723,-490.0,0.00016931,2]
[366372746,1750218679734,-490.0,0.00016931,2]
[366372747,1750218679744,-243.874976,0.00016931,2]
[366372748,1750218679754,-243.874976,0.00016931,2]
[366372749,1750218679765,-409.14129119,0.00016931,2]
[366372750,1750218679775,-243.874972,0.00016931,2]
[366372751,1750218679784,-1051.46,0.00016931,2]
[366372752,1750218679794,-642.37,0.00016931,2]
[366372753,1750218679804,-2493.02,0.00016931,2]
[366372754,1750218679815,-490.0,0.00016931,2]
[366372755,1750218679824,-490.0,0.00016931,2]
[366372756,1750218679835,-490.0,0.00016931,2]
[366372757,1750218679845,-1322.14,0.00016931,2]
[366372758,1750218679854,-8053.76,0.00016931,2]
[366372759,1750218679864,-490.0,0.00016931,2]
[366372760,1750218679874,-1331.44,0.00016931,2]
[366372761,1750218679884,-720.81,0.00016931,2]
[366372762,1750218679893,-490.0,0.00016931,2]
[366372763,1750218679903,-3396.77,0.00016931,2]
[366372764,1750218679913,-490.0,0.00016931,2]
[366372765,1750218679923,-490.0,0.00016931,2]
[366372766,1750218679932,-490.0,0.00016931,2]
[366372767,1750218679942,-490.0,0.00016931,2]
[366372768,1750218679952,-10391.89,0.00016931,2]
[366372769,1750218679961,-490.0,0.00016931,2]
[366372770,1750218679971,-462.37675867,0.00016931,2]
[366372771,1750218679982,-802.43,0.00016931,2]
[366372772,1750218679992,-490.0,0.00016931,2]
[366372773,1750218680002,-1003.5,0.00016931,2]
[366372774,1750218680011,-490.0,0.00016931,2]
[366372775,1750218680021,-557.2,0.00016931,2]
[366372776,1750218680031,-490.0,0.00016931,2]
[366372777,1750218680158,-3455.54,0.00016931,2]
[366372778,1750218680170,-7382.41,0.00016931,2]
[366372779,1750218680180,-1999.18,0.00016931,2]
[366372780,1750218680191,-490.0,0.00016931,2]
[366372781,1750218680201,-2641.69,0.00016931,2]
[366372782,1750218680211,-947.5,0.00016931,2]
[366372783,1750218680223,-490.0,0.00016931,2]
[366372784,1750218680234,-880.23,0.00016931,2]
[366372785,1750218680245,-695.3,0.00016931,2]
[366372786,1750218680255,-490.0,0.00016931,2]
[366372787,1750218680266,-490.0,0.00016931,2]
[366372788,1750218680276,-490.0,0.00016931,2]
[366372789,1750218680287,-1016.74,0.00016931,2]
[366372790,1750218680297,-10316.96,0.00016931,2]
[366372791,1750218680306,-490.0,0.00016931,2]
[366372792,1750218680315,-899.08,0.00016931,2]
[366372793,1750218680325,-490.0,0.00016931,2]
[366372794,1750218680336,-490.0,0.00016931,2]
[366372795,1750218680346,-1360.48,0.00016931,2]
[366372796,1750218680357,-1281.0,0.00016931,2]
[366372797,1750218680366,-490.0,0.00016931,2]
[366372798,1750218680376,-1532.53,0.00016931,2]
[366372799,1750218680386,-693.95,0.00016931,2]
[366372800,1750218680397,-5511.92,0.00016931,2]
[366372801,1750218680408,-490.0,0.00016931,2]
[366372802,1750218680418,-570.48380333,0.00016931,2]
[366372803,1750218680428,-2083.16,0.00016931,2]
[366372804,1750218680438,-490.0,0.00016931,2]
[366372805,1750218680448,-4085.48,0.00016931,2]
[366372806,1750218680458,-1236.8,0.00016931,2]
[366372807,1750218680468,-1322.18,0.00016931,2]
[366372808,1750218680478,-513.97,0.00016931,2]
[366372809,1750218680488,-490.0,0.00016931,2]
[366372810,1750218680498,-213.845425,0.00016931,2]
[366372811,1750218680508,-213.845425,0.00016931,2]
[366372812,1750218680518,-1284.97,0.00016931,2]
[366372813,1750218680528,-213.845425,0.00016931,2]
[366372814,1750218680538,-593.25,0.00016931,2]
[366372815,1750218680548,-4861.67,0.00016931,2]
[366372816,1750218680558,-2516.32,0.00016931,2]
[366372817,1750218680568,-540.25,0.00016931,2]
[366372818,1750218680578,-490.0,0.00016931,2]
[366372819,1750218680588,-22443.85,0.00016931,2]
[366372820,1750218680597,-213.845425,0.00016931,2]
[366372821,1750218680607,-213.845425,0.00016931,2]
[366372822,1750218680617,-213.845425,0.00016931,2]
[366372823,1750218680626,-1177.47,0.00016931,2]
[366372824,1750218680636,-490.0,0.00016931,2]
[366372825,1750218680646,-490.0,0.00016931,2]
[366372826,1750218680656,-490.0,0.00016931,2]
[366372827,1750218680666,-2307.15,0.00016931,2]
[366372828,1750218680676,-490.0,0.00016931,2]
[366372829,1750218680685,-545.08,0.00016931,2]
[366372830,1750218680696,-1836.35,0.00016931,2]
[366372831,1750218680706,-490.0,0.00016931,2]
[366372832,1750218680715,-490.0,0.00016931,2]
[366372833,1750218680726,-3266.87,0.00016931,2]
[366372834,1750218680735,-490.0,0.00016931,2]
[366372835,1750218680745,-562.76,0.00016931,2]
[366372836,1750218680755,-1602.28,0.00016931,2]
[366372837,1750218680766,-1844.69,0.00016931,2]
[366372838,1750218680775,-490.0,0.00016931,2]
[366372839,1750218680785,-953.34,0.00016931,2]
[366372840,1750218680795,-490.0,0.00016931,2]
[366372841,1750218680805,-523.78,0.00016931,2]
[366372842,1750218680815,-1310.68,0.00016931,2]
[366372843,1750218680824,-490.0,0.00016931,2]
[366372844,1750218680834,-3945.85,0.00016931,2]
[366372845,1750218680843,-1563.56,0.00016931,2]
[366372846,1750218680853,-490.0,0.00016931,2]
[366372847,1750218680864,-490.0,0.00016931,2]
[366372848,1750218680874,-3811.09,0.00016931,2]
[366372849,1750218680884,-490.0,0.00016931,2]
[366372850,1750218680894,-678.95,0.00016931,2]
[366372851,1750218680904,-490.0,0.00016931,2]
[366372852,1750218680914,-490.0,0.00016931,2]
[366372853,1750218680924,-1408.3,0.00016931,2]
[366372854,1750218680934,-1660.37,0.00016931,2]
[366372855,1750218680944,-3413.49,0.00016931,2]
[366372856,1750218680954,-1767.78,0.00016931,2]
[366372857,1750218680966,-2920.7,0.00016931,2]
[366372858,1750218680976,-594.94,0.00016931,2]
[366372859,1750218680987,-490.0,0.00016931,2]
[366372860,1750218680997,-5359.83,0.00016931,2]
[366372861,1750218681006,-1074.12,0.00016931,2]
[366372862,1750218681016,-1000.0,0.00016931,2]
[366372863,1750218681026,-490.0,0.00016931,2]
[366372864,1750218681119,-1373.77,0.00016931,2]
[366372865,1750218681130,-1113.57,0.00016931,2]
[366372866,1750218681141,-1142.76,0.00016931,2]
[366372867,1750218681156,-490.0,0.00016931,2]
[366372868,1750218681167,-490.0,0.00016931,2]
[366372869,1750218681177,-150.0,0.00016936,2]
[366372870,1750218681187,-12500.0,0.00016936,2]
[366372871,1750218681197,-269.94029841,0.0001694,2]
[366372872,1750218681207,-12500.0,0.00016945,2]
[366372873,1750218681217,-597.06921744,0.00016953,2]
[366372874,1750218681228,-12500.0,0.00016954,2]
[366372875,1750218681238,-150.0,0.00016957,2]
[366372876,1750218681248,-150.0,0.0001696,2]
[366372877,1750218681259,-2234.12,0.00016962,2]
[366372878,1750218681270,-4349.92868488,0.00016963,2]
[366372879,1750218681279,-151.0,0.00016964,2]
[366372880,1750218681289,-150.0,0.00016968,2]
[366372881,1750218681300,-1814.86768654,0.00016969,2]
[366372882,1750218681310,-601.59863212,0.0001697,2]
[366372883,1750218681319,-232.0,0.00016971,2]
[366372884,1750218681329,-500.0,0.00016973,2]
[366372885,1750218681340,-497.58910929,0.00016973,2]
[366372886,1750218681350,-419.30854706,0.00016973,2]
[366372887,1750218681360,-217.0352638,0.00016973,2]
[366372888,1750218681370,-500.0,0.00016973,2]
[366372889,1750218681380,-501.34737539,0.00016973,2]
[366372890,1750218681389,-500.5951532,0.00016973,2]
[366372891,1750218681399,-505.49621904,0.00016973,2]
[366372892,1750218681409,-519.7129137,0.00016973,2]
[366372893,1750218681418,-299.7432764,0.00016973,2]
[366372894,1750218681427,-160.11499773,0.00016973,2]
[366372895,1750218681437,-160.11090775,0.00016973,2]
[366372896,1750218681447,-160.11454461,0.00016973,2]
[366372897,1750218681456,-500.0,0.00016973,2]
[366372898,1750218681466,-160.11282226,0.00016973,2]
[366372899,1750218681475,-500.1520469,0.00016973,2]
[366372900,1750218681485,-321.59946982,0.00016973,2]
[366372901,1750218681494,-512.99019753,0.00016973,2]
[366372902,1750218681504,-500.09880269,0.00016973,2]
[366372903,1750218681514,-160.10906648,0.00016973,2]
[366372904,1750218681524,-198.55258671,0.00016973,2]
[366372905,1750218681533,-151.0,0.00016973,2]
[366372906,1750218681543,-151.0,0.00016973,2]
[366372907,1750218681552,-3047.33960724,0.00016978,2]
[366372908,1750218681562,-156.587,0.00016983,2]
[366372909,1750218681572,-215.0738,0.00016983,2]
[366372910,1750218681581,-15163.92183785,0.0001699,2]
[366372911,1750218682182,-4991.10656599,0.0001699,2]
[366372912,1750218682210,-490.0,0.00016767,2]
[366372913,1750218682223,-92.78092417,0.0001699,2]
[366372914,1750218682234,-2536.47402202,0.0001699,2]
[366372915,1750218682246,-402.04444686,0.0001699,2]
[366372916,1750218682279,-490.0,0.00016931,2]
[366372917,1750218682288,-490.0,0.00016931,2]
[366372918,1750218682298,-989.0,0.0001699,2]
[366372919,1750218682311,-3202.17428945,0.0001699,2]
[366372920,1750218682336,-277.57103379,0.0001699,2]
[366372921,1750218682348,-667.13511448,0.0001699,2]
[366372922,1750218682360,-389.57019752,0.0001699,2]
[366372923,1750218682390,-490.0,0.00016931,2]
[366372924,1750218682399,-3690.31456499,0.0001699,2]
[366372925,1750218682411,-26873.24885595,0.0001699,2]
[366372926,1750218682803,-493.42,0.00016438,2]
[366372927,1750218682812,-1761.90286418,0.0001699,2]
[366372928,1750218682824,-1230.95482277,0.0001699,2]
[366372929,1750218682839,-3470.53647137,0.0001699,2]
[366372930,1750218683637,-200.0,0.00013278,2]
[366372931,1750218683647,-195.30172135,0.00016438,2]
[366373053,1750219733895,594.0,0.00024658,120]
[366373057,1750219831906,-677.17614432,0.00013696,2]
[366373058,1750219831959,-454.40958204,0.00013696,2]
[366373059,1750219831971,-68.41427364,0.00013696,2]
[366373060,1750219831980,-1035.79729021,0.00013697,2]
[366373061,1750219832115,-1328.43559685,0.00013697,2]
[366373062,1750219832223,-1029.29698763,0.00013697,2]
[366373063,1750219832234,-22871.09820091,0.00013697,2]
[366373064,1750219832245,-500.0,0.00013698,2]
[366373065,1750219832255,-620.0,0.00013698,2]
[366373066,1750219832264,-500.0,0.00013698,2]
[366373067,1750219832274,-500.0,0.00013698,2]
[366373068,1750219832284,-500.0,0.00013698,2]
[366373069,1750219832294,-500.0,0.00013698,2]
[366373070,1750219832304,-401.14292246,0.00013698,2]
[366373071,1750219832313,-500.0,0.00013698,2]
[366373072,1750219832323,-500.0,0.00013698,2]
[366373073,1750219832333,-169.12936871,0.00013698,2]
[366373074,1750219832343,-174268.98124394,0.00013699,2]
[366373075,1750219832355,-98229.88850575,0.00013699,2]
[366373076,1750219832364,-215.96,0.00013699,2]
[366373077,1750219832374,-204.0,0.00014341,2]
[366373078,1750219832384,-200.0,0.00014759,7]
[366373079,1750219832394,-150.0,0.00014834,2]
[366373080,1750219832404,-600.0,0.00014858,4]
[366373081,1750219832413,-150.0,0.00014876,2]
[366373082,1750219832423,-1247.01674434,0.000149,2]
[366373083,1750219832433,-200.0,0.00014905,2]
[366373084,1750219832443,-1000.0,0.00014925,2]
[366373085,1750219832453,-150.0,0.00014954,2]
[366373086,1750219832463,-360.03,0.00014986,2]
[366373087,1750219832473,-416.0,0.00015,2]
[366373088,1750219832482,-1680.0,0.00015066,2]
[366373089,1750219832492,-250.0,0.00015068,2]
[366373092,1750219832502,-600.0,0.00015068,4]
[366373094,1750219832512,-1247.01674426,0.00015072,2]
[366373096,1750219832521,-150.0,0.00015182,2]
[366373097,1750219832531,-1247.01674426,0.00015245,2]
[366373098,1750219832545,-150.0,0.00015333,2]
[366373099,1750219832555,-150.0,0.00015334,2]
[366373100,1750219832565,-150.0,0.00015361,2]
[366373101,1750219832576,-150.0,0.00015366,2]
[366373102,1750219832587,-1247.01674426,0.00015417,2]
[366373103,1750219832597,-150.0,0.00015431,2]
[366373104,1750219832606,-150.0,0.00015469,2]
[366373105,1750219832616,-150.0,0.00015561,2]
[366373106,1750219832625,-150.0,0.0001558,2]
[366373107,1750219832633,-150.0,0.00015583,2]
[366373108,1750219832643,-1247.01674426,0.0001559,2]
[366373109,1750219832652,-150.0,0.00015609,2]
[366373110,1750219832662,-600.0,0.00015609,4]
[366373111,1750219832672,-150.0,0.0001564,2]
[366373112,1750219832683,-150.0,0.00015675,2]
[366373113,1750219832693,-150.0,0.00015681,2]
[366373114,1750219832703,-150.0,0.00015682,2]
[366373115,1750219832713,-1247.01674426,0.00015762,2]
[366373116,1750219832727,-150.0,0.00015824,2]
[366373117,1750219832737,-150.0,0.00015827,2]
[366373118,1750219832747,-150.0,0.00015834,2]
[366373119,1750219832759,-150.0,0.0001584,2]
[366373120,1750219832769,-150.0,0.00015869,2]
[366373121,1750219832780,-1957.856,0.00015876,2]
[366373122,1750219832790,-151.0,0.00015876,2]
[366373123,1750219832801,-930.89516597,0.00015876,2]
[366373124,1750219832812,-700.0,0.00015876,2]
[366373125,1750219832822,-700.0,0.00015876,2]
[366373126,1750219832831,-700.0,0.00015876,2]
[366373127,1750219832841,-700.0,0.00015876,2]
[366373128,1750219832850,-700.0,0.00015876,2]
[366373129,1750219832860,-322.9757762,0.00015876,2]
[366373130,1750219832870,-207.4,0.00015876,2]
[366373131,1750219832880,-2106.0,0.0001589,2]
[366373132,1750219832890,-158.57334639,0.000159,2]
[366373133,1750219832899,-158.57334636,0.000159,2]
[366373134,1750219832909,-158.57334636,0.000159,2]
[366373135,1750219832919,-158.57334636,0.000159,2]
[366373136,1750219832929,-158.57334636,0.000159,2]
[366373137,1750219832939,-158.57334636,0.000159,2]
[366373138,1750219832949,-158.57334636,0.000159,2]
[366373139,1750219832959,-2030.29667201,0.00015931,2]
[366373140,1750219832970,-1247.01674426,0.00015934,2]
[366373141,1750219832980,-150.0,0.00015958,2]
[366373142,1750219832990,-150.0,0.00015982,2]
[366373143,1750219833004,-150.0,0.00015995,2]
[366373145,1750219833014,-380.12016683,0.00016,5]
[366373146,1750219833023,-1247.01674426,0.00016107,2]
[366373147,1750219833034,-151.15,0.00016118,2]
[366373148,1750219833044,-305.62,0.00016118,2]
[366373149,1750219833054,-497.66,0.00016119,2]
[366373150,1750219833065,-301.63,0.00016119,2]
[366373151,1750219833076,-6.50751664,0.00016119,2]
[366373624,1750219838039,-500.52248336,0.00016119,2]
[366373625,1750219838049,-300.77,0.00016119,2]
[366373626,1750219838059,-500.05,0.00016119,2]
[366373627,1750219838068,-106.15476739,0.0001617,2]
[366373628,1750219838084,-50.35336272,0.0001617,2]
[366373629,1750219838094,-600.0,0.00016194,4]
[366373630,1750219838103,-150.0,0.00016202,2]
[366373632,1750219838113,-150.0,0.00016261,2]
[366373633,1750219838123,-150.0,0.00016268,2]
[366373636,1750219838132,-509.46,0.0001627,2]
[366373638,1750219838142,-151.01,0.0001627,2]
[366373639,1750219838151,-1143.77279861,0.0001627,2]
[366373642,1750219838161,-1069.97208667,0.0001627,2]
[366373644,1750219838171,-1128.1587345,0.0001627,2]
[366373646,1750219838180,-1054.72234184,0.0001627,2]
[366373648,1750219838190,-1036.16311358,0.0001627,2]
[366373650,1750219838200,-150.0,0.00016271,2]
[366373652,1750219838209,-1247.01674426,0.00016279,2]
[366373654,1750219838219,-158.57334636,0.00016284,2]
[366373656,1750219838228,-163.63057456,0.00016338,2]
[366373658,1750219838237,-215.9522388,0.00016338,2]
[366373660,1750219838247,-464.28850026,0.00016338,2]
[366373662,1750219838256,-500.0,0.0001638,2]
[366373664,1750219838266,-150.0,0.00016392,2]
[366373666,1750219838276,-156.50813011,0.00016401,2]
[366373669,1750219838285,-198.59687896,0.00016428,2]
[366373672,1750219838295,-1059.05178257,0.00016432,2]
[366373675,1750219838304,-1029.05334155,0.00016432,2]
[366373677,1750219838312,-1515.66053779,0.00016432,2]
[366373679,1750219838322,-262.26060732,0.00016437,2]
[366373682,1750219838332,-490.0,0.00016438,2]
[366373685,1750219838341,-828.691304,0.00016438,2]
[366373688,1750219838350,-500.0,0.00016438,2]
[366373691,1750219838360,-490.0,0.00016438,2]
[366373694,1750219838369,-490.0,0.00016438,2]
[366373696,1750219838379,-490.0,0.00016438,2]
[366373699,1750219838388,-490.0,0.00016438,2]
[366373702,1750219838399,-490.0,0.00016438,2]
[366373704,1750219838408,-490.0,0.00016438,2]
[366373706,1750219838418,-490.0,0.00016438,2]
[366373708,1750219838428,-490.0,0.00016438,2]
[366373710,1750219838437,-783.57,0.00016438,2]
[366373712,1750219838447,-490.0,0.00016438,2]
[366373714,1750219838456,-492.17258839,0.00016438,2]
[366373716,1750219838466,-490.0,0.00016438,2]
[366373718,1750219838476,-599.13,0.00016438,2]
[366373720,1750219838487,-490.0,0.00016438,2]
[366373722,1750219838496,-536.74,0.00016438,2]
[366373724,1750219838506,-490.63955188,0.00016438,2]
[366373726,1750219838515,-490.0,0.00016438,2]
[366373728,1750219838526,-491.76155691,0.00016438,2]
[366373730,1750219838536,-490.0,0.00016438,2]
[366373732,1750219838545,-490.0,0.00016438,2]
[366373734,1750219838554,-490.0,0.00016438,2]
[366373736,1750219838565,-490.0,0.00016438,2]
[366373738,1750219838574,-692.07,0.00016438,2]
[366373740,1750219838584,-340.59198904,0.00016438,2]
[366373742,1750219838593,-490.0,0.00016438,2]
[366373744,1750219838602,-490.0,0.00016438,2]
[366373746,1750219838614,-491.39844724,0.00016438,2]
[366373748,1750219838624,-694.2,0.00016438,2]
[366373750,1750219838633,-422.6288634,0.00016438,2]
[366373752,1750219838642,-490.0,0.00016438,2]
[366373754,1750219838652,-491.27855126,0.00016438,2]
[366373756,1750219838662,-490.0,0.00016438,2]
[366373758,1750219838673,-490.0,0.00016438,2]
[366373760,1750219838682,-582.11,0.00016438,2]
[366373762,1750219838692,-490.0,0.00016438,2]
[366373764,1750219838701,-514.07,0.00016438,2]
[366373766,1750219838711,-803.78,0.00016438,2]
[366373768,1750219838722,-490.0,0.00016438,2]
[366373770,1750219838732,-490.0,0.00016438,2]
[366373772,1750219838741,-1323.31,0.00016438,2]
[366373774,1750219838751,-490.0,0.00016438,2]
[366373776,1750219838762,-490.0,0.00016438,2]
[366373778,1750219838771,-244.83391174,0.00016438,2]
[366373780,1750219838781,-490.0,0.00016438,2]
[366373782,1750219838791,-946.44,0.00016438,2]
[366373784,1750219838803,-490.0,0.00016438,2]
[366373786,1750219838813,-490.0,0.00016438,2]
[366373788,1750219838823,-491.27792705,0.00016438,2]
[366373790,1750219838834,-490.62,0.00016438,2]
[366373792,1750219838844,-558.54841602,0.00016438,2]
[366373794,1750219838854,-490.0,0.00016438,2]
[366373796,1750219838863,-1344.44,0.00016438,2]
[366373798,1750219838872,-496.09917087,0.00016438,2]
[366373800,1750219838882,-490.0,0.00016438,2]
[366373802,1750219838892,-490.0,0.00016438,2]
[366373804,1750219838901,-438.03631452,0.00016438,2]
[366373806,1750219838911,-1227.08,0.00016438,2]
[366373808,1750219838919,-490.0,0.00016438,2]
[366373810,1750219838929,-490.0,0.00016438,2]
[366373812,1750219838939,-490.0,0.00016438,2]
[366373814,1750219838948,-490.0,0.00016438,2]
[366373816,1750219838957,-490.0,0.00016438,2]
[366373818,1750219838966,-490.0,0.00016438,2]
[366373820,1750219838976,-490.0,0.00016438,2]
[366373822,1750219838986,-490.0,0.00016438,2]
[366373824,1750219838995,-490.0,0.00016438,2]
[366373826,1750219839006,-490.0,0.00016438,2]
[366373828,1750219839028,-490.0,0.00016438,2]
[366373830,1750219839038,-490.0,0.00016438,2]
[366373832,1750219839048,-490.0,0.00016438,2]
[366373834,1750219839057,-490.0,0.00016438,2]
[366373836,1750219839067,-490.0,0.00016438,2]
[366373838,1750219839077,-490.0,0.00016438,2]
[366373840,1750219839087,-490.0,0.00016438,2]
[366373842,1750219839096,-490.0,0.00016438,2]
[366373844,1750219839105,-494.03506448,0.00016438,2]
[366373846,1750219839114,-490.0,0.00016438,2]
[366373848,1750219839124,-496.52294167,0.00016438,2]
[366373850,1750219839133,-517.78582032,0.00016438,2]
[366373852,1750219839142,-490.0,0.00016438,2]
[366373854,1750219839152,-512.34,0.00016438,2]
[366373856,1750219839162,-490.0,0.00016438,2]
[366373858,1750219839171,-490.0,0.00016438,2]
[366373860,1750219839181,-490.0,0.00016438,2]
[366373862,1750219839190,-490.0,0.00016438,2]
[366373864,1750219839200,-490.0,0.00016438,2]
[366373866,1750219839210,-490.0,0.00016438,2]
[366373868,1750219839220,-490.0,0.00016438,2]
[366373870,1750219839229,-490.0,0.00016438,2]
[366373872,1750219839238,-689.41,0.00016438,2]
[366373874,1750219839248,-490.0,0.00016438,2]
[366373876,1750219839258,-490.0,0.00016438,2]
[366373878,1750219839268,-194.12296921,0.00016438,2]
[366373881,1750219839278,-490.0,0.00016438,2]